Cogmind - Beta 10 @@@ ROGUE MODE // 2020.09.19 @ 11:58:30 Player: HOTSOUP Result: Self-destructed Performance ------------- Evolutions (1) 500 Regions Visited (3) 600 Robots Destroyed (13) 65 Value Destroyed (363) 363 Prototype IDs (3) 60 Alien Tech Used (0) 0 Bonus (0) 0 TOTAL SCORE: 1588 Bonus ------- None Cogmind --------- Core Integrity 121/400 Matter 290/300 Energy 36/100 System Corruption 1% Temperature Cool (0) Movement Flying (120) Ox1 Location -9/Materials Parts ------- > --- POWER (1) -------- (None) > --- PROPULSION (3) --- Flight Unit > --- UTILITY (3) ------ Small Storage Unit ECM Suite > --- WEAPON (2) ------- (None) > --- INVENTORY (6) ---- Light Ion Engine Small Battery (100) Peak State ------------ > --- POWER ------------ Ion Engine > --- PROPULSION ------- Aluminum Leg Improved Aluminum Leg > --- UTILITY ---------- Small Storage Unit ECM Suite Sensor Drone Bay > --- WEAPON ----------- Mining Laser Katana > --- INVENTORY -------- Light Ion Engine Small Battery Assault Rifle [Rating: 18] Favorites ----------- Power Light Ion Engine Engine Light Ion Engine Propulsion Aluminum Leg Leg Aluminum Leg Flight Unit Flight Unit Utility Small Storage Unit Device Sensor Drone Bay Storage Small Storage Unit Processor Improved Signal Interpreter Protection Light Armor Plating Weapon Assault Rifle Energy Gun Medium Laser Ballistic Gun Assault Rifle Special Weapon Mining Laser Slashing Weapon Katana Build | -11 -10 -10 -9 ------- Run | Scr Mat Min Mat Slots Evolved 2 | . . . 2 Power . | . . . . Propulsion 1 | . . . 1 Utility 1 | . . . 1 Weapon . | . . . . Parts Attached 18 | 6 . 1 11 Power 2 | 1 . . 1 Engine 2 | 1 . . 1 Core . | . . . . Reactor . | . . . . Propulsion 4 | 2 . . 2 Treads . | . . . . Leg 3 | 2 . . 1 Wheel . | . . . . Hover . | . . . . Flight 1 | . . . 1 Utility 6 | 1 . 1 4 Device 3 | . . 1 2 Storage 1 | 1 . . . Processor 1 | . . . 1 Hackware . | . . . . Protection 1 | . . . 1 Artifact . | . . . . Weapon 6 | 2 . . 4 Energy Gun 1 | . . . 1 Energy Cannon . | . . . . Ballistic Gun 3 | 2 . . 1 Ballistic Cannon . | . . . . Launcher . | . . . . Special Weapon 1 | . . . 1 Impact Weapon . | . . . . Slashing Weapon 1 | . . . 1 Piercing Weapon . | . . . . Special Melee Weapon . | . . . . Unidentified Prototypes 1 | . . 1 . Parts Lost 10 | . . . 10 Power 2 | . . . 2 Propulsion 3 | . . . 3 Utility 1 | . . . 1 Weapon 4 | . . . 4 Highest Loss Streak 3 | . . . 3 Average Slot Usage (%) 80 | . 85 96 73 Engine 9 | . 14 14 6 Leg 23 | . 28 28 19 Device 10 | . . 10 14 Storage 12 | . 14 14 11 Ballistic Gun 18 | . 28 28 11 Slashing Weapon 3 | . . . 6 Naked Turns . | . . . . Heaviest Build 28 | 11 11 25 28 Greatest Support 23 | 20 20 20 23 Greatest Overweight (x) 9 | . . 1 9 Average Overweight (x) . | . . . . Largest Inventory Capacity 6 | 6 6 6 6 Average Capacity 5 | 4 6 6 6 Most Carried 6 | 4 4 6 6 Average Carried 4 | 1 2 5 4 Final Capacity 6 | 6 6 6 6 Final Carried 6 | 1 4 6 2 Class Distribution -------------------- 100% | Mutant Dominant Class ---------------- Mutant | -10/Materials Mutant | -10/Mines Mutant | -9/Materials Resources | -11 -10 -10 -9 ----------- Run | Scr Mat Min Mat Matter Collected 476 | 245 36 53 142 Remotely . | . . . . Salvage Created 490 | . 36 39 415 Parts 24 | . 2 5 17 Haulers Intercepted . | . . . . Recyclers Shooed . | . . . . Parts Field Recycled . | . . . . Retrieved Matter . | . . . . Parts Self-Destructed . | . . . . Prevented . | . . . . Kills | -11 -10 -10 -9 ------- Run | Scr Mat Min Mat Combat Hostiles Destroyed 11 | . 1 1 9 Melee 4 | . . . 4 Guns 7 | . 1 1 5 Classes Destroyed 6 | . 1 2 3 Tunneler 1 | . . 1 . Recycler 1 | . . . 1 Swarmer 3 | . . 1 2 Grunt 5 | . 1 . 4 Duelist 1 | . . . 1 Sentry 2 | . . . 2 Best Kill Streak 3 | . 1 1 3 Combat Bots Only 2 | . 1 1 2 Max Kills in Single Turn 2 | . 1 1 2 Gunslinging 1 | . . . 1 Exploded . | . . . . Melee 1 | . . . 1 Uniques/NPCs Destroyed . | . . . . Combat | -11 -10 -10 -9 -------- Run | Scr Mat Min Mat Damage Taken 1547 | . 53 46 1448 Core 287 | . . 8 279 Absorbed by Shields . | . . . . Core Remaining (%) 98 | 100 . 96 . Volleys Fired 34 | . 9 2 23 Largest 2 | . 2 2 2 Hottest 100 | . 40 40 100 Shots Fired 64 | . 18 4 42 Gun 62 | . 18 4 40 Cannon . | . . . . Launcher . | . . . . Special 2 | . . . 2 Kinetic 51 | . 18 4 29 Thermal 13 | . . . 13 Explosive . | . . . . Electromagnetic . | . . . . Robot Hit Streak 10 | . 3 4 10 Robot Miss Streak 5 | . 5 . 2 Penetration Max . | . . . . Secondary Targets 2 | . . . 2 Max Gunslinging Chain 1 | . . . 1 Shots Hit Robots 61 | . 10 1 50 Core Hits 21 | . 2 2 17 Critical Hits 1 | . . . 1 Critical Kills . | . . . . Critical Parts Destroyed 1 | . . . 1 Melee Attacks 27 | . . . 27 Impact . | . . . . Slashing 27 | . . . 27 Piercing . | . . . . Sneak Attacks 1 | . . . 1 Combat Hostiles . | . . . . Follow-up Attacks . | . . . . Damage Inflicted 1196 | . 109 41 1046 Guns 552 | . 109 38 405 Cannons . | . . . . Explosions . | . . . . Melee 617 | . . . 617 Ramming 3 | . . 3 . Kinetic 426 | . 109 38 279 Thermal 150 | . . . 150 Explosive . | . . . . Electromagnetic . | . . . . Impact . | . . . . Slashing 617 | . . . 617 Piercing . | . . . . Highest Corruption 1 | . . . 1 Average Corruption 1 | . . . 1 Corruption Purged . | . . . . Effects 2 | . . . 2 Message Errors 1 | . . . 1 Data Loss (minor) 1 | . . . 1 Overload Shots . | . . . . Overflow Damage 21 | . . . 21 Projectiles . | . . . . Explosions . | . . . . Melee 21 | . . . 21 Knockbacks . | . . . . Impact . | . . . . Kinetic . | . . . . Secondary . | . . . . Self-Inflicted Damage . | . . . . Shots . | . . . . Rammed . | . . . . Targets Rammed 1 | . . 1 . Kicked 1 | . . 1 . Crushed . | . . . . Highest Temperature 90 | . . . 90 Average Temperature 25 | . . . 25 Received Heat Transfer 570 | . 30 . 540 Siege Activations . | . . . . Robots Corrupted . | . . . . Combat Hostiles . | . . . . Parts Fried . | . . . . Impact Corruptions . | . . . . Robots Melted . | . . . . Combat Hostiles . | . . . . Parts Melted . | . . . . Heat Transferred 420 | . . . 420 Parts Sabotaged . | . . . . Parts Stolen . | . . . . Parts Stripped . | . . . . Power Chain Reactions . | . . . . Missiles Intercepted . | . . . . Alert | -11 -10 -10 -9 ------- Run | Scr Mat Min Mat Peak Influence 139 | . 60 25 139 Initial 23 | . . 23 9 Average 37 | . 12 18 59 Maximum Alert Level . | . . . . Low Security (%) 100 | 100 100 100 100 Level 1 . | . . . . Level 2 . | . . . . Level 3 . | . . . . Level 4 . | . . . . Level 5 . | . . . . High Security . | . . . . Max Security . | . . . . Squads Dispatched 1 | . 1 . . Investigation . | . . . . Extermination . | . . . . Reinforcement 1 | . 1 . . Assault . | . . . . Garrison . | . . . . Intercept . | . . . . Construction Impeded . | . . . . Haulers Reinforced . | . . . . Stealth | -11 -10 -10 -9 --------- Run | Scr Mat Min Mat Distress Signals . | . . . . Communications Jammed . | . . . . Distress Signals . | . . . . Times Spotted 39 | . 4 19 16 Peak Tracking Total 15 | . 2 15 4 Tactical Retreats 3 | . . 2 1 Traps | -11 -10 -10 -9 ------- Run | Scr Mat Min Mat Traps Triggered 1 | . . . 1 Indirectly . | . . . . Trap Hack Attempts . | . . . . Triggered . | . . . . Disarmed . | . . . . Reprogrammed . | . . . . Reused . | . . . . Traps Extracted . | . . . . Installed . | . . . . Triggered . | . . . . Machines | -11 -10 -10 -9 ---------- Run | Scr Mat Min Mat Machines Disabled 1 | . 1 . . Max in Single Turn 1 | . 1 . . Machines Sabotaged . | . . . . Garrisons Compromised . | . . . . Overloaded Fab Kills . | . . . . Fab Network Shutdowns . | . . . . Hacking | -11 -10 -10 -9 --------- Run | Scr Mat Min Mat Machines Accessed 4 | . 1 1 2 Terminals 2 | . 1 . 1 Fabricators . | . . . . Repair Stations 1 | . . . 1 Recycling Units . | . . . . Scanalyzers . | . . . . Garrison Access . | . . . . Total Hacks 5 | . 2 1 2 Successful 5 | . 2 1 2 Failed . | . . . . Catastrophic . | . . . . Database Lockouts . | . . . . Manual 4 | . 1 1 2 Terminals 3 | . 2 . 1 Fabricators . | . . . . Repair Stations 1 | . . . 1 Recycling Units . | . . . . Scanalyzers . | . . . . Garrison Access . | . . . . Terminal Hacks 2 | . 1 1 . Prototype ID Bank 1 | . 1 . . Open Door 1 | . . 1 . Fabricator Hacks . | . . . . Repair Station Hacks 1 | . . . 1 Scan Component 1 | . . . 1 Recycling Unit Hacks . | . . . . Scanalyzer . | . . . . Garrison Access Hacks . | . . . . Unauthorized Hacks 2 | . 1 . 1 Terminals 2 | . 1 . 1 Assimilate 2 | . 1 . 1 Fabricators . | . . . . Repair Stations . | . . . . Recycling Units . | . . . . Scanalyzers . | . . . . Garrison Access . | . . . . Data Cores Recovered . | . . . . Used . | . . . . Hacking Detections . | . . . . Full Trace Events . | . . . . Feedback Events . | . . . . Feedback Blocked . | . . . . Robot Schematics Acquired . | . . . . Robots Built . | . . . . Matter . | . . . . Time . | . . . . Total Robot Build Rating . | . . . . Part Schematics Acquired . | . . . . Parts Built . | . . . . Matter . | . . . . Time . | . . . . Total Part Build Rating . | . . . . Parts Repaired . | . . . . Time . | . . . . Parts Recycled . | . . . . Recycled Matter . | . . . . Retrieved Matter . | . . . . Retrieved Components . | . . . . Parts Scanalyzed . | . . . . Part Schematics Acquired . | . . . . Parts Damaged . | . . . . Bothacking | -11 -10 -10 -9 ------------ Run | Scr Mat Min Mat Used RIF Installer . | . . . . Robots Hacked . | . . . . Non-combat . | . . . . Combat . | . . . . Robot Hacks Applied . | . . . . Relay Couplers Released . | . . . . Robots Rewired . | . . . . Allies Hacked . | . . . . Hacks Repelled . | . . . . Allies | -11 -10 -10 -9 -------- Run | Scr Mat Min Mat Total Allies . | . . . . Largest Group . | . . . . Highest-Rated Group . | . . . . Highest-Rated Ally . | . . . . Total Orders 1 | . . 1 . EXPLORE 1 | . . 1 . Ally Attacks . | . . . . Total Damage . | . . . . Kills . | . . . . Allies Corrupted 2 | . . 2 . Allies Melted . | . . . . Intel | -11 -10 -10 -9 ------- Run | Scr Mat Min Mat Robot Analysis Total . | . . . . Derelict Logs Recovered . | . . . . Drone Launches 30 | . . 20 10 Drone Recoveries 26 | . . 16 10 Exploration | -11 -10 -10 -9 ------------- Run | Scr Mat Min Mat Turns Passed 1113 | 56 244 218 595 Spaces Moved 539 | 42 152 126 219 Core 13 | 9 . . 4 Treads . | . . . . Legs 525 | 33 152 126 214 Wheels . | . . . . Hover . | . . . . Flight 1 | . . . 1 Fastest Speed 50 | 50 120 120 120 Average Speed 136 | 105 120 140 151 Slowest Speed 500 | 120 120 150 500 Overloaded Moves . | . . . . Propulsion Burnouts . | . . . . Robots Hopped . | . . . . Cave-ins Triggered . | . . . . Exploration Rate (%) 34 | 3 23 96 16 Regions Visited 3 Branch Regions 1 Pre-discovered Areas . | . . . . Known Exits Taken 1 | . . 1 . Unknown Exits Taken 2 | 1 1 . . Scrap Searched 1 | . . 1 . Spaces Dug . | . . . . Terrain Destroyed 1 | . . . 1 Melee . | . . . . Projectile 1 | . . . 1 AOE . | . . . . Terrain Rammed . | . . . . Walls Destroyed . | . . . . Machines Disabled . | . . . . Actions | -11 -10 -10 -9 --------- Run | Scr Mat Min Mat Total 809 | 54 195 163 397 Wait 172 | . 32 31 109 Move 536 | 41 151 125 219 Hop . | . . . . Pick Up 16 | 7 3 3 3 Fast Attach 2 | . . . 2 Attach 16 | 6 . 1 9 Detach 2 | . . . 2 Swap . | . . . . Drop 3 | . . . 3 Fire 34 | . 9 2 23 Melee 27 | . . . 27 Ram . | . . . . Kick 1 | . . 1 . Crush . | . . . . Escape Stasis . | . . . . Rewire . | . . . . Trap . | . . . . Miscellaneous . | . . . . Route ------- -11/Scrapyard -10/Materials -10/Mines (discovered 2 exits: *Mat x2) -9/Materials History --------- Turn | Location | Event 7 | -11/Scrapyard | Discovered new exit (range 16) 57 | -11/Scrapyard | Entered Materials 167 | -10/Materials | Discovered new exit (range 16) 301 | -10/Materials | Entered Mines 305 | -10/Mines | Build established: Mutant 345 | -10/Mines | Found the Drone Emporium 350 | -10/Mines | Found Prototype Device 351 | -10/Mines | Identified Sensor Drone Bay 385 | -10/Mines | Discovered new exit (range 39) 386 | -10/Mines | Discovered new exit (range 24) 389 | -10/Mines | Identified exit to Materials 392 | -10/Mines | Assembled infested the area 519 | -10/Mines | Entered Materials 519 | -9/Materials | Evolved 2 slots: Propulsion x1, Utility x1 773 | -9/Materials | Lost 3 parts (1p1u1w) 1092 | -9/Materials | Core integrity fell below 50% 1114 | -9/Materials | Self-destructed Last Messages --------------- 01084_ Assault Rifle destroyed. 01084_ S-10 Pest destroyed. 01085_ Sensor Drone retrieved by Sensor Drone Bay. 01087_ Ion Engine destroyed. 01088_ S-10 Pest destroyed. 01090_ R-06 Scavenger collects Flight Unit. 01094_ R-06 Scavenger collects Lgt. Assault Rifle. 01096_ Acquired Flight Unit. 01098_ R-06 Scavenger collects Flight Unit. 01102_ R-06 Scavenger collects Lgt. Assault Rifle. 01103_ Sneak attack on R-06 Scavenger. 01103_ R-06 Scavenger destroyed. 01104_ R-06 Scavenger collects Tractor Beam. 01105_ Destroyed Flight Unit. 01107_ R-06 Scavenger collects Flight Unit. 01110_ S-10 Pest destroyed. 01111_ R-06 Scavenger collects Lgt. Assault Rifle. 01113_ Dropped Sensor Drone Bay. 01113_ Dropped Katana. 01114_ R-06 Scavenger collects Sensor Drone Bay. Map ----- +----------------------------------------------------+ | """# #??????????????????????????????????????????? | | # #??????????????????????????????????????????? | | """# #??????????????????????????????????????????? | | """# #??????????????????????????????????????????? | | """# #??????????????????????????????????????????? | | + #??????????????????????????????????????????? | | #### #???????????????? ???????????????????????? | | # #???????????????? ???????????????????????? | | # #???????????????# "???????????????????????? | | "" # #???????????????# %#??????????????????????? | | "" + #???????????????# #??????????????????????? | | "" # #???????????????# k #??????????????????????? | | #= #???????????????# #??????????????????????? | | #### #???????????????# #??????????????????????? | | ##=*#??? ???????????# #??????????????????????? | | ##!%#??# ??????????# #??????????????????????? | | ## #??# ??????????# ##?????????????????????? | | ##% ##?# ??????????# #?????????????????????? | | # #?# ??????????+ #?????????????????????? | | + #?# ??????????# #?????????????????????? | | # #?# ??????????# #?????????????????????? | | # #?# ???????????# #??????????????????????? | | ## ##?# #??????????#s #??????????????????????? | | ## %#??# #??????????#[/########???????????????? | | ## #??# #??????????#% ## ???????????????? | | ## #?## ##????????##r@## """""???????????????? | | ####%%### #######+## %*%# """""???????????????? | | ???# *# """"" ??????????????? | | ???#% % w/ """"" ??????????????? | | #####+### ###+###+## # """"" ??????????????? | | ## ### ## ## """""???????????????? | | "" """ ## #?# ## ## """""???????????????? | | "" R" ## #?# ## ## ???????????????? | | "" """ ## #?# """ ## ########???????????????? | | ## ### """ + #??????????????????????? | | ######+## [ ## """ ##+#############???????????? | | ???# ## # %"#???????????? | | ???# T + """ # ##???????????? | | ???###### ## """ # """ """ """ #????????????? | | ????????####### """ # """ """ """ #????????????? | | ??????????????# # """ """ """ #????????????? | | ???????????????#### ### #????????????? | | ???????????????????##?###############????????????? | | | | | | | | | | | | | | | +----------------------------------------------------+ Best States ------------- Heat Dissipation 28 Energy Generation 10 Energy Capacity 250 Matter Stores 300 Matter Capacity 300 Sight Range 16 Terrain Scan Density 10 ECM Strength 1 Armor Coverage 150 Evasion (%) 40 Item Schematics ----------------- None Robot Schematics ------------------ None Fabricated ------------ Nothing Alien Tech Used ----------------- None Achievements -------------- Slippery One Challenges ------------ None Game ------ Seed LaserTrapWheel Manual? 0 Play Time 00:20:57 Cumulative 26.9 hours Start 2020.09.15 @ 00:41:17 End 2020.09.19 @ 11:58:30 Sessions 3 Manual Loads 0 Difficulty Rogue Special Mode None Game No. 44 Rogue 27 Adventurer 16 Explorer 1 Win Type - Total 0 Types 0/0/0/0/0/0/0/0/0 Lore% 16 Gallery% 29 Achievement% 23 Wizard Run 0 Options --------- ASCII 0 Keyboard 0 Movement Numpad Keybinds 0 Fullscreen 1 Font 14/SmallcapsGlow Map View 84x54 Tactical HUD 1 Map Filters NONE Filters NONE Steam 1 RUN: 6f0cfe45-c92d-4c16-99cd-0fceba33e43a